fUST/lending_fUST_20260401
["ID","MTS","AMOUNT","RATE_DAILY","PERIOD"]
[419178276,1775007053050,-500.0,0.00021973,2]
[419178277,1775007053059,-500.2238791,0.00021973,2]
[419178278,1775007053069,-500.0,0.00021973,2]
[419178279,1775007053079,-500.0,0.00021973,2]
[419178280,1775007053088,-500.0,0.00021973,2]
[419178281,1775007053098,-500.0,0.00021973,2]
[419178282,1775007053107,-500.0,0.00021973,2]
[419178283,1775007053117,-500.0,0.00021973,2]
[419178284,1775007053126,-500.0,0.00021973,2]
[419178285,1775007053135,-500.0,0.00021973,2]
[419178286,1775007053145,-500.0,0.00021973,2]
[419178287,1775007053155,-500.0,0.00021995,8]
[419178288,1775007053165,-255.9,0.00021995,9]
[419178289,1775007053175,-34607.97237884,0.00022,2]
[419178290,1775007053184,-155.0,0.00022,2]
[419178291,1775007053194,-2475.0963237,0.00022002,2]
[419178292,1775007053204,-1007.7944598,0.00022047,2]
[419178293,1775007053213,-3000.0,0.000223,2]
[419178294,1775007053224,-3000.0,0.0002231,2]
[419178295,1775007053234,-3000.0,0.0002232,2]
[419178296,1775007053243,-3000.0,0.0002233,2]
[419178297,1775007053254,-5600.983667,0.0002234,2]
[419178298,1775007053263,-1000.0,0.00022521,2]
[419178299,1775007053273,-1000.0,0.00022521,2]
[419178300,1775007053283,-1000.0,0.00022521,2]
[419178301,1775007053292,-1000.0,0.00022521,2]
[419178302,1775007053302,-1000.0,0.00022521,2]
[419178303,1775007053312,-558.58565148,0.00022521,2]
[419178304,1775007053321,-1000.0,0.00022521,2]
[419178305,1775007053332,-600.0,0.00022914,10]
[419178306,1775007053341,-4493.92426036,0.0002293,43]
[419178307,1775007053351,-155.0,0.00023,2]
[419178308,1775007053361,-156.0,0.00023,7]
[419178309,1775007053371,-1500.0,0.00023068,2]
[419178310,1775007053381,-1500.0,0.00023068,2]
[419178311,1775007053390,-811.12934352,0.00023068,2]
[419178312,1775007053400,-1232.94427383,0.00023068,2]
[419178313,1775007053410,-1500.0,0.00023068,2]
[419178314,1775007053419,-1500.0,0.00023068,2]
[419178315,1775007053429,-1323.5,0.00023278,3]
[419178316,1775007053438,-661.74,0.00023278,3]
[419178317,1775007053448,-330.88,0.00023278,3]
[419178318,1775007053457,-330.88,0.00023278,3]
[419178319,1775007053468,-270.83333333,0.00023483,2]
[419178320,1775007053477,-184.42986615,0.0002355,2]
[419178321,1775007053487,-731.96195894,0.00023616,2]
[419178322,1775007053496,-222.41905705,0.00023616,2]
[419178323,1775007053506,-2000.0,0.00023616,2]
[419178324,1775007053515,-2000.0,0.00023616,2]
[419178325,1775007053525,-1000.0,0.000238,5]
[419178326,1775007053535,-217.3718384,0.00023805,2]
[419178327,1775007053544,-691.0,0.00023813,3]
[419178328,1775007053554,-691.0,0.00023813,3]
[419178329,1775007053564,-646.0,0.00023813,3]
[419178330,1775007053574,-646.0,0.00023813,3]
[419178331,1775007053583,-646.0,0.00023813,3]
[419178332,1775007053593,-339.0,0.00023813,3]
[419178333,1775007053604,-646.0,0.00023813,3]
[419178334,1775007053614,-339.0,0.00023813,3]
[419178335,1775007053624,-646.0,0.00023813,3]
[419178336,1775007053634,-339.0,0.00023813,3]
[419178337,1775007053644,-646.0,0.00023813,3]
[419178338,1775007053654,-339.0,0.00023813,3]
[419178339,1775007053665,-646.0,0.00023813,3]
[419178340,1775007053675,-646.0,0.00023813,3]
[419178341,1775007053685,-646.0,0.00023813,3]
[419178342,1775007053695,-560.15823564,0.00023813,3]
[419178343,1775007053704,-270.83333333,0.00023813,3]
[419178344,1775007053714,-155.0,0.00024,2]
[419178345,1775007053724,-221.397823,0.0002407,14]
[419178346,1775007053734,-179.317528,0.0002407,14]
[419178347,1775007053744,-2475.0963237,0.0002411,2]
[419178348,1775007053755,-1077.671821,0.00024139,2]
[419178349,1775007053765,-320.634602,0.00024164,14]
[419178350,1775007053775,-2500.0,0.00024164,2]
[419178351,1775007053785,-2500.0,0.00024164,2]
[419178352,1775007053795,-161.34732986,0.0002429,2]
[419178353,1775007053805,-13696.7498003,0.00024396,2]
[419178354,1775007053815,-13696.7498003,0.00024396,2]
[419178355,1775007053825,-1007.7944598,0.00024538,2]
[419178356,1775007053835,-5216.38222229,0.00024561,78]
[419178357,1775007053845,-180.09184684,0.00024577,2]
[419178358,1775007053855,-250.0,0.00024658,5]
[419178359,1775007053865,-2000.0,0.00024658,2]
[419178360,1775007053875,-174.5,0.00024658,2]
[419178361,1775007053885,-174.5,0.00024658,2]
[419178362,1775007053895,-174.5,0.00024658,2]
[419178363,1775007053904,-174.5,0.00024658,2]
[419178364,1775007053914,-174.5,0.00024658,2]
[419178365,1775007053924,-174.5,0.00024658,2]
[419178366,1775007053934,-174.5,0.00024658,2]
[419178367,1775007053944,-174.5,0.00024658,2]
[419178368,1775007053954,-174.5,0.00024658,2]
[419178369,1775007053964,-174.5,0.00024658,2]
[419178370,1775007053974,-174.5,0.00024658,2]
[419178371,1775007053984,-174.5,0.00024658,2]
[419178372,1775007053994,-174.5,0.00024658,2]
[419178373,1775007054004,-174.5,0.00024658,2]
[419178374,1775007054014,-174.5,0.00024658,2]
[419178375,1775007054023,-174.5,0.00024658,2]
[419178376,1775007054034,-174.5,0.00024658,2]
[419178377,1775007054043,-174.5,0.00024658,2]
[419178378,1775007054053,-174.5,0.00024658,2]
[419178379,1775007054063,-174.5,0.00024658,2]
[419178380,1775007054073,-980.54616182,0.00024712,2]
[419178381,1775007054083,-3000.0,0.00024712,2]
[419178382,1775007054092,-155.0,0.00025,2]
[419178383,1775007054102,-240.461086,0.00025087,2]
[419178384,1775007054112,-250.0,0.00025198,2]
[419178385,1775007054122,-406.65,0.000252,3]
[419178386,1775007054132,-301.22,0.000252,3]
[419178387,1775007054142,-720.0,0.00025206,10]
[419178388,1775007054152,-250.0,0.00025248,2]
[419178389,1775007054161,-300.0,0.00025248,2]
[419178390,1775007054171,-362.90118898,0.00025248,2]
[419178391,1775007054181,-3500.0,0.0002526,2]
[419178392,1775007054191,-400.603665,0.0002528,14]
[419178393,1775007054201,-161.34732986,0.00025313,14]
[419178394,1775007054211,-528.392,0.00025401,10]
[419178395,1775007054221,-206.11,0.000255,3]
[419178396,1775007054231,-173.35377942,0.00025616,2]
[419178397,1775007054241,-242.358921,0.00025667,14]
[419178398,1775007054251,-342.53365165,0.00025746,2]
[419178399,1775007054261,-350.0,0.00025796,2]
[419178400,1775007054271,-450.0,0.00025796,2]
[419178401,1775007054281,-3000.0,0.00025808,2]
[419178402,1775007054291,-166.0,0.00026,2]
[419178403,1775007054302,-614.7662205,0.00026075,2]
[419178404,1775007054312,-5439.16053199,0.00026191,106]
[419178405,1775007054322,-1279.74751946,0.00026219,2]
[419178406,1775007054339,-1195.34880424,0.00026219,2]
[419178407,1775007054349,-365.67565056,0.00026344,2]
[419178408,1775007054359,-600.0,0.00026344,2]
[419178409,1775007054369,-801.586506,0.00026581,14]
[419178410,1775007054379,-766.63056805,0.00026621,2]
[419178411,1775007054388,-772.67154782,0.00026892,2]
[419178412,1775007054398,-800.0,0.00026986,2]
[419178413,1775007054407,-160.63564646,0.00027,20]
[419178415,1775007054417,-151.0,0.00027093,2]
[419178416,1775007054427,-455.1219555,0.00027093,2]
[419178417,1775007054437,-800.0,0.00027132,2]
[419178418,1775007054448,-483.9738453,0.00027158,30]
[419178419,1775007054458,-250.0,0.00027158,30]
[419178420,1775007054467,-3373.74502272,0.0002717,2]
[419178735,1775007125140,500.0,0.0003287,120]
[419178736,1775007145739,-1000.0,0.00013699,2]
[419178738,1775007202810,-4925.93803496,0.00018797,2]
[419178739,1775007237451,-74.06196504,0.00018797,2]
[419178740,1775007237486,-851.87606992,0.00018887,2]
[419178741,1775007254338,518.18840138,0.00020194,120]
[419178742,1775007389772,981.61,0.00032877,120]
[419178743,1775007700717,1018.53,0.000326,120]
[419178744,1775007701691,1018.53,0.00032712,120]
[419178745,1775007702670,1018.53,0.00032825,120]
[419178812,1775008232353,-614.0,0.00013598,2]
[419178814,1775008232363,-1000.0,0.00013699,2]
[419178816,1775008232373,-300.0,0.00013869,2]
[419178818,1775008232383,-300.0,0.0001387,2]
[419178820,1775008232393,-300.0,0.0001387,2]
[419178822,1775008232403,-300.0,0.0001387,2]
[419178824,1775008232412,-300.0,0.0001387,2]
[419178826,1775008232422,-300.0,0.0001387,2]
[419178828,1775008232431,-32.76645159,0.0001387,2]
[419178851,1775008232592,-267.23354841,0.0001387,2]
[419178853,1775008232602,-300.0,0.0001387,2]
[419178856,1775008232612,-300.0,0.0001387,2]
[419178858,1775008232621,-300.0,0.0001387,2]
[419178860,1775008232631,-300.0,0.0001387,2]
[419178862,1775008232641,-300.0,0.0001387,2]
[419178864,1775008232650,-300.0,0.0001387,2]
[419178866,1775008232660,-300.0,0.0001387,2]
[419178868,1775008232669,-300.0,0.0001387,2]
[419178870,1775008232679,-300.0,0.0001387,2]
[419178872,1775008232688,-600.0,0.00013972,2]
[419178874,1775008232697,-420.0,0.00015196,2]
[419178876,1775008232707,-720.0,0.00015369,2]
[419178878,1775008232716,-317.0,0.00016651,2]
[419178880,1775008232726,-864.0,0.00016906,2]
[419178882,1775008232735,-500.0,0.0001752,2]
[419178884,1775008232746,-250.77191803,0.00017967,2]
[419178886,1775008232755,-633.3163859,0.00017984,2]
[419178888,1775008232764,-1007.095708,0.00018068,2]
[419178890,1775008232773,-500.0,0.00018573,2]
[419178892,1775008232782,-500.0,0.00018573,2]
[419178894,1775008232792,-500.0,0.00018573,2]
[419178896,1775008232802,-500.0,0.00018573,2]
[419178898,1775008232811,-266.67256515,0.00018573,2]
[419178900,1775008232821,-1000.0,0.00018597,2]
[419178902,1775008232830,-500.1756328,0.00018639,2]
[419178904,1775008232840,-1000.0,0.00019121,2]
[419178906,1775008232849,-1000.0,0.00019121,2]
[419178920,1775008232945,-1000.65590798,0.00019121,2]
[419178922,1775008232985,-1082.27739597,0.00019121,2]
[419178924,1775008232994,-501.35780049,0.00019668,2]
[419178926,1775008233004,-1000.0,0.00020272,2]
[419178928,1775008233013,-500.0,0.000203,2]
[419178930,1775008233023,-215.283181,0.0002033,2]
[419178932,1775008233032,-501.0726398,0.00020367,2]
[419178934,1775008233042,-508.84908153,0.00020367,2]
[419178936,1775008233051,-524.76173602,0.00020367,2]
[419178939,1775008233061,-500.0,0.00020367,2]
[419178941,1775008233071,-500.0,0.00020367,2]
[419178943,1775008233080,-1000.0,0.00020456,2]
[419178945,1775008233089,-244.0,0.00020456,2]
[419178947,1775008233099,-500.0,0.0002065,2]
[419178949,1775008233108,-501.87933804,0.0002065,2]
[419178951,1775008233117,-656.60883349,0.00020848,2]
[419178953,1775008233127,-500.0,0.000209,2]
[419178955,1775008233136,-672.53735297,0.00021198,2]
[419178957,1775008233146,-643.40065441,0.00021283,2]
[419178959,1775008233156,-907.66512236,0.00021448,2]
[419178961,1775008233166,-500.0,0.00021916,2]
[419178963,1775008233175,-500.0,0.00021916,2]
[419178965,1775008233185,-500.0,0.00021916,2]
[419178967,1775008233194,-353.60063021,0.00021916,2]
[419178969,1775008233204,-500.0,0.00021916,2]
[419178971,1775008233213,-500.0,0.00021916,2]
[419178973,1775008233222,-500.0,0.00021916,2]
[419178975,1775008233232,-500.0,0.00021916,2]
[419178977,1775008233242,-359.83893212,0.00021916,2]
[419179102,1775008241767,-140.16106788,0.00021916,2]
[419179103,1775008241777,-500.0,0.00021916,2]
[419179104,1775008241787,-500.0,0.00021916,2]
[419179105,1775008241797,-500.0,0.00021916,2]
[419179106,1775008241806,-500.0,0.00021916,2]
[419179107,1775008241816,-317.35214446,0.00021916,2]
[419179108,1775008241827,-306.36266722,0.00021916,2]
[419179109,1775008241836,-500.0,0.00021916,2]
[419179110,1775008241845,-500.0,0.00021916,2]
[419179111,1775008241855,-500.0,0.00021916,2]
[419179112,1775008241864,-500.0,0.00021916,2]
[419179113,1775008241873,-500.0,0.00021916,2]
[419179114,1775008241882,-500.0,0.00021916,2]
[419179115,1775008241891,-500.0,0.00021916,2]
[419179116,1775008241900,-500.0,0.00021916,2]
[419179117,1775008241910,-500.0,0.00021916,2]
[419179118,1775008241919,-500.0,0.00021916,2]
[419179120,1775008241928,-500.0,0.00021916,2]
[419179121,1775008241937,-500.0,0.00021916,2]
[419179123,1775008241947,-500.0,0.00021916,2]
[419179125,1775008241956,-500.0,0.00021916,2]
[419179126,1775008241965,-500.0,0.00021916,2]
[419179128,1775008241975,-500.0,0.00021916,2]
[419179129,1775008241983,-500.0,0.00021916,2]
[419179131,1775008241992,-500.0,0.00021916,2]
[419179133,1775008242002,-500.0,0.00021916,2]
[419179134,1775008242011,-500.0,0.00021916,2]
[419179135,1775008242020,-500.0,0.00021916,2]
[419179136,1775008242030,-500.0,0.00021916,2]
[419179137,1775008242039,-500.0,0.00021916,2]
[419179138,1775008242049,-500.0,0.00021916,2]
[419179139,1775008242059,-500.0,0.00021916,2]
[419179140,1775008242068,-500.0,0.00021916,2]
[419179141,1775008242078,-500.0,0.00021916,2]
[419179142,1775008242088,-500.0,0.00021916,2]
[419179143,1775008242097,-500.0,0.00021916,2]
[419179144,1775008242107,-500.0,0.00021916,2]
[419179145,1775008242116,-500.0,0.00021916,2]
[419179146,1775008242126,-500.0,0.00021916,2]
[419179147,1775008242135,-500.0,0.00021916,2]
[419179149,1775008242145,-500.0,0.00021916,2]
[419179150,1775008242155,-500.0,0.00021916,2]
[419179152,1775008242164,-500.0,0.00021916,2]
[419179154,1775008242175,-500.0,0.00021916,2]
[419179155,1775008242184,-500.0,0.00021916,2]
[419179157,1775008242193,-500.0,0.00021916,2]
[419179159,1775008242204,-500.0,0.00021916,2]
[419179161,1775008242214,-500.0,0.00021916,2]
[419179163,1775008242223,-500.0,0.00021916,2]
[419179165,1775008242233,-500.0,0.00021916,2]
[419179167,1775008242242,-500.0,0.00021916,2]
[419179169,1775008242251,-500.0,0.00021916,2]
[419179171,1775008242260,-500.0,0.00021916,2]
[419179173,1775008242269,-500.0,0.00021916,2]
[419179175,1775008242278,-500.0,0.00021916,2]
[419179177,1775008242288,-500.0,0.00021916,2]
[419179179,1775008242297,-500.0,0.00021916,2]
[419179181,1775008242306,-500.0,0.00021916,2]
[419179183,1775008242315,-500.0,0.00021916,2]
[419179185,1775008242325,-500.0,0.00021916,2]
[419179187,1775008242334,-611.3340771,0.00021916,2]
[419179189,1775008242344,-500.0,0.00021916,2]
[419179191,1775008242353,-500.0,0.00021916,2]
[419179193,1775008242362,-500.0,0.00021916,2]
[419179195,1775008242372,-500.0,0.00021917,2]
[419179197,1775008242381,-500.0,0.00021917,3]
[419179199,1775008242391,-500.0,0.00021917,4]
[419179202,1775008242401,-500.0,0.00021917,5]
[419179204,1775008242410,-500.0,0.00021917,6]
[419179206,1775008242420,-514.86084206,0.00021917,7]
[419179208,1775008242431,-150.11876195,0.00021918,2]
[419179209,1775008242441,-1000.0,0.00022502,10]
[419179212,1775008242450,-492.0,0.00022502,10]
[419179214,1775008242460,-270.83333333,0.00023,2]
[419179216,1775008242469,-368.007,0.00023137,2]
[419179218,1775008242478,-184.0,0.00023137,2]
[419179220,1775008242487,-480.673,0.00023137,2]
[419179222,1775008242496,-1000.0,0.00024752,10]
[419179223,1775008242507,-791.0,0.00024752,10]
[419179225,1775008242517,-180.08824324,0.00025417,2]
[419179227,1775008242526,-184.0,0.00026137,2]
[419179229,1775008242536,-440.0,0.00026137,2]
[419179231,1775008242545,-4727.0,0.00026381,10]
[419179233,1775008242554,-663.0,0.00026381,10]
[419179235,1775008242563,-513.63737536,0.00026621,2]
[419179237,1775008242572,-997.93483014,0.00026847,2]
[419179240,1775008242585,-489.70845498,0.00026847,2]
[419179242,1775008242595,-309.94465878,0.00026847,2]
[419179244,1775008242604,-500.0,0.00026847,2]
[419179246,1775008242614,-1487.64328512,0.00026847,2]
[419179248,1775008242625,-500.0,0.00026847,2]
[419179250,1775008242634,-1487.64328512,0.00026847,2]
[419179252,1775008242645,-500.0,0.00026847,2]
[419179254,1775008242656,-500.0,0.00026847,2]
[419179256,1775008242665,-1487.64328512,0.00026847,2]
[419179258,1775008242674,-500.0,0.00026847,2]
[419179260,1775008242683,-1487.64328512,0.00026847,2]
[419179262,1775008242692,-500.0,0.00026847,2]
[419179264,1775008242701,-635.32800954,0.00026847,2]
[419179266,1775008242710,-1487.64328512,0.00026847,2]
[419179268,1775008242719,-1487.64328512,0.00026847,2]
[419179270,1775008242728,-1487.64328512,0.00026847,2]
[419179272,1775008242737,-829.58404835,0.00026847,2]
[419179274,1775008242749,-658.05923677,0.00026847,2]
[419179276,1775008242759,-1487.64328512,0.00026847,2]
[419179278,1775008242768,-1487.64328512,0.00026847,2]
[419179280,1775008242778,-478.34931609,0.00026847,2]
[419179282,1775008242790,-21.65068391,0.00026847,2]
[419179284,1775008242799,-1425.97373842,0.00026847,2]
[419179286,1775008242810,-61.6695467,0.00026847,2]
[419179288,1775008242819,-495.4004533,0.00026847,2]
[419179676,1775008246867,-342.42491691,0.00026621,2]
[419179678,1775008246877,-4.5995467,0.00026847,2]
[419179680,1775008246886,-500.0,0.00026847,2]
[419179682,1775008246895,-456.58871336,0.00026847,2]
[419179685,1775008246919,-1031.05457176,0.00026847,2]
[419179687,1775008246928,-500.0,0.00026847,2]
[419179689,1775008246938,-1487.64328512,0.00026847,2]
[419179692,1775008246949,-500.0,0.00026847,2]
[419179694,1775008246959,-1487.64328512,0.00026847,2]
[419179696,1775008246968,-1487.64328512,0.00026847,2]
[419179698,1775008246978,-1487.64328512,0.00026847,2]
[419179700,1775008246988,-1487.64328512,0.00026847,2]
[419179702,1775008246997,-1487.64328512,0.00026847,2]
[419179704,1775008247007,-500.0,0.00026847,2]
[419179706,1775008247017,-1487.64328512,0.00026847,2]
[419179708,1775008247026,-1487.64328512,0.00026847,2]
[419179710,1775008247036,-1487.64328512,0.00026847,2]
[419179712,1775008247046,-500.0,0.00026847,2]
[419179714,1775008247055,-1487.64328512,0.00026847,2]
[419179716,1775008247064,-1487.64328512,0.00026847,2]
[419179718,1775008247073,-1593.90351975,0.00026847,2]
[419179720,1775008247083,-1593.90351975,0.00026847,2]
[419179722,1775008247092,-1593.90351975,0.00026847,2]
[419179736,1775008247210,-1593.90351975,0.00026847,2]
[419179738,1775008247223,-1593.90351975,0.00026847,2]
[419179740,1775008247233,-1593.90351975,0.00026847,2]
[419179742,1775008247243,-1593.90351975,0.00026847,2]
[419179744,1775008247252,-200.0,0.00026847,2]
[419179746,1775008247261,-28432.49721799,0.00026848,2]
[419181241,1775008339137,1000.0,0.00030137,120]
[419181242,1775008339763,466.08132947,0.00030137,120]
[419181243,1775008342507,829.90038547,0.00032877,120]
[419181246,1775008477973,245.72424484,0.00023136,120]
[419181247,1775008582371,1018.27,0.000326,120]
[419181248,1775008583342,1018.27,0.00032712,120]
[419181249,1775008584313,1018.27,0.00032825,120]
[419181260,1775008919369,-609.51785024,0.00013599,2]
[419181261,1775008919393,-4.48214976,0.00013599,2]
[419181262,1775008948447,-609.51785024,0.00013599,2]
[419181267,1775009201512,500.0,0.00022199,120]
[419181274,1775009411753,157.3675093,0.0003,120]
[419181324,1775009433034,-1828.60152261,7.6e-05,2]
[419181326,1775009433047,-59.94081868,7.6e-05,2]
[419181328,1775009433057,-527.0,7.6e-05,2]
[419181330,1775009433066,-2013.05918132,0.00012803,8]
[419181332,1775009433077,-2750.0,0.00012803,8]
[419181589,1775009444257,-236.94081868,0.00012803,8]
[419181591,1775009444266,-263.05918132,0.00012932,8]
[419181726,1775009446819,-4736.94081868,0.00012932,8]
[419181727,1775009446829,-5000.0,0.00013562,2]
[419181728,1775009446838,-1000.0,0.00013699,2]
[419181729,1775009446848,-500.0,0.00013699,2]
[419181730,1775009446857,-500.0,0.00013699,2]
[419181731,1775009446867,-500.0,0.00013699,2]
[419181732,1775009446876,-156.8153825,0.00013699,2]
[419181733,1775009446886,-300.0,0.00013972,2]
[419181734,1775009446895,-300.0,0.00013972,2]
[419181735,1775009446906,-300.0,0.00013972,2]
[419181736,1775009446915,-300.0,0.00013972,2]
[419181737,1775009446925,-300.0,0.00013972,2]
[419181738,1775009446934,-300.0,0.00013972,2]
[419181739,1775009446944,-300.0,0.00013972,2]
[419181740,1775009446954,-300.0,0.00013972,2]
[419181741,1775009446964,-300.0,0.00013972,2]
[419181742,1775009446975,-300.0,0.00013972,2]
[419181743,1775009446984,-300.0,0.00013972,2]
[419181744,1775009446994,-300.0,0.00013972,2]
[419181745,1775009447003,-300.0,0.00013972,2]
[419181746,1775009447013,-300.0,0.00013972,2]
[419181747,1775009447023,-300.0,0.00013972,2]
[419181748,1775009447032,-600.0,0.0001425,2]
[419181749,1775009447042,-720.0,0.00015675,2]
[419181750,1775009447051,-504.88050937,0.0001582,2]
[419181751,1775009447061,-388.68602582,0.0001585,2]
[419181752,1775009447071,-242.76978526,0.00015908,2]
[419181753,1775009447080,-502.02924794,0.0001595,2]
[419181754,1775009447090,-500.0,0.0001595,2]
[419181755,1775009447099,-500.0,0.0001595,2]
[419181756,1775009447110,-503.91544019,0.0001595,2]
[419181757,1775009447120,-500.0,0.00016177,2]
[419181758,1775009447131,-500.0,0.00016177,2]
[419181759,1775009447141,-502.04401747,0.00016327,2]
[419181760,1775009447150,-1000.0,0.00016498,2]
[419181761,1775009447160,-1000.0,0.00016498,2]
[419181762,1775009447276,-1000.0,0.00016725,2]
[419181763,1775009447291,-1000.0,0.00016725,2]
[419181764,1775009447302,-500.0,0.00016814,2]
[419181765,1775009447311,-207.61974019,0.00016912,2]
[419181766,1775009447321,-1500.0,0.00017046,2]
[419181767,1775009447330,-1500.0,0.00017046,2]
[419181768,1775009447339,-500.0,0.00017088,2]
[419181769,1775009447350,-864.0,0.00017243,2]
[419181770,1775009447359,-1500.0,0.00017273,2]
[419181771,1775009447368,-1500.0,0.00017273,2]
[419181772,1775009447378,-500.0,0.00017362,2]
[419181773,1775009447388,-2000.0,0.00017594,2]
[419181774,1775009447397,-2000.0,0.00017594,2]
[419181775,1775009447407,-500.0,0.00017636,2]
[419181776,1775009447416,-2000.0,0.00017821,2]
[419181777,1775009447426,-2000.0,0.00017821,2]
[419181778,1775009447435,-483.26458893,0.0001791,2]
[419181779,1775009447444,-10470.51443212,0.00018,2]
[419181780,1775009447454,-2500.0,0.00018142,2]
[419181781,1775009447463,-2500.0,0.00018142,2]
[419181782,1775009447473,-580.55505165,0.00018369,2]
[419181783,1775009447483,-2500.0,0.00018369,2]
[419181784,1775009447492,-3000.0,0.0001869,2]
[419181785,1775009447503,-3000.0,0.0001869,2]
[419181786,1775009447512,-3000.0,0.00018917,2]
[419181787,1775009447523,-1000.0,0.00018967,2]
[419181788,1775009447532,-3500.0,0.00019238,2]
[419181789,1775009447542,-3500.0,0.00019238,2]
[419181790,1775009447552,-3500.0,0.00019465,2]
[419181791,1775009447561,-3705.55200151,0.00019786,2]
[419181792,1775009447571,-2975.4644973,0.00019786,2]
[419181793,1775009447582,-200.0,0.00019936,2]
[419181794,1775009447591,-1776.64601131,0.0002,2]
[419181795,1775009447600,-4000.0,0.00020013,2]
[419181796,1775009447610,-760.87799253,0.0002056,2]
[419181797,1775009447621,-1000.0,0.00020864,2]
[419181798,1775009447632,-244.0,0.00020864,2]
[419181799,1775009447642,-1005.91,0.0002099,10]
[419181800,1775009447652,-279.71465158,0.00021,2]
[419181801,1775009447662,-6685.98006787,0.00021,2]
[419181802,1775009447673,-6000.0,0.00021,2]
[419181803,1775009447683,-176.2586778,0.00021717,2]
[419181804,1775009447693,-1820.2088,0.000223,2]
[419181805,1775009447704,-1957.856,0.0002265,2]
[419181806,1775009447716,-2398.4119403,0.0002265,2]
[419181807,1775009447728,-911.49,0.00022694,3]
[419181808,1775009447739,-455.74,0.00022694,3]
[419181809,1775009447749,-227.87,0.00022694,3]
[419181810,1775009447758,-184.0,0.00022697,2]
[419181811,1775009447768,-440.0,0.00022697,2]
[419181812,1775009447777,-286.82357923,0.00022703,2]
[419181813,1775009447787,-1019.0356503,0.00022703,2]
[419181814,1775009447796,-1019.0356503,0.00022703,2]
[419181815,1775009447806,-500.0,0.00022703,2]
[419181816,1775009447815,-1019.0356503,0.00022703,2]
[419181817,1775009447825,-500.0,0.00022703,2]
[419181818,1775009447834,-1019.0356503,0.00022703,2]
[419181819,1775009447843,-1019.0356503,0.00022703,2]
[419181820,1775009447852,-1019.0356503,0.00022703,2]
[419181821,1775009447862,-500.0,0.00022703,2]
[419181822,1775009447871,-1019.0356503,0.00022703,2]
[419181823,1775009447881,-500.0,0.00022703,2]
[419181824,1775009447891,-1019.0356503,0.00022703,2]
[419181825,1775009447900,-500.0,0.00022703,2]
[419181826,1775009447910,-1019.0356503,0.00022703,2]
[419181827,1775009447919,-500.0,0.00022703,2]
[419181828,1775009447930,-500.0,0.00022703,2]
[419181829,1775009447939,-500.0,0.00022703,2]
[419181830,1775009447949,-1019.0356503,0.00022703,2]
[419181831,1775009447959,-1019.0356503,0.00022703,2]
[419181832,1775009447969,-500.0,0.00022703,2]
[419181833,1775009447980,-1019.0356503,0.00022703,2]
[419181834,1775009447989,-1019.0356503,0.00022703,2]
[419181835,1775009447999,-500.0,0.00022703,2]
[419181836,1775009448010,-1019.0356503,0.00022703,2]
[419181837,1775009448019,-246.44279965,0.00022703,2]
[419181838,1775009448030,-1019.0356503,0.00022703,2]
[419181839,1775009448039,-500.0,0.00022703,2]
[419181840,1775009448048,-500.0,0.00022703,2]
[419181841,1775009448057,-500.0,0.00022703,2]
[419181842,1775009448069,-1019.0356503,0.00022703,2]
[419181843,1775009448080,-1019.0356503,0.00022703,2]
[419181844,1775009448089,-1019.0356503,0.00022703,2]
[419181845,1775009448099,-2030.296672,0.00022705,2]
[419181846,1775009448109,-2105.41764886,0.0002276,2]